Cogmind - Beta 13 @@@ ROGUE MODE // 2024.04.27 @ 18:41:46 Player: Fazzonamite Result: Destroyed by S-43 Plague with Heavy Machine Gun Performance ------------- Evolutions (9) 4500 Regions Visited (13) 2600 Robots Destroyed (96) 480 Value Destroyed (2938) 2938 Prototype IDs (31) 620 Alien Tech Used (0) 0 Bonus (410) 410 TOTAL SCORE: 11548 Bonus ------- Follower Combat Kills 230 Aligned with FarCom 300 Friendly Fire -120 Cogmind --------- Core Integrity 0/1600 Matter 247/300 Energy 99/100 System Corruption 2% Temperature Cool (0) Movement Core (50) Location -1/Access Parts ------- > --- POWER (2) -------- (None) > --- PROPULSION (8) --- (None) > --- UTILITY (12) ----- Advanced Visual Processing Unit Advanced Signal Interpreter Experimental Targeting Computer Core Analyzer Improved Hacking Suite Improved Hacking Suite Advanced System Shield > --- WEAPON (3) ------- (None) > --- INVENTORY (5) ---- Light Ion Engine Light Quantum Reactor High-capacity Matter Pod (200) Tesla Rifle Force Lance Peak State ------------ > --- POWER ------------ Fission Core Light Antimatter Reactor > --- PROPULSION ------- Improved VTOL Module Improved VTOL Module Improved Cesium-ion Thruster Nuclear Pulse Thruster Impulse Thruster Array Impulse Thruster Array > --- UTILITY ---------- Small Storage Unit Advanced Visual Processing Unit Advanced Signal Interpreter Seismic Detector Experimental Targeting Computer Improved Target Analyzer Core Analyzer Improved Reaction Control System Phase Shifter Light Regenerative Plating Improved Hacking Suite Advanced System Shield > --- WEAPON ----------- Micro-nuke Launcher Force Lance > --- INVENTORY -------- Light Ion Engine Cesium-ion Thruster High-capacity Matter Pod Tesla Rifle [Rating: 129] Favorites ----------- Power Light Nuclear Core Engine Ion Engine Power Core Light Nuclear Core Reactor Light Antimatter Reactor Propulsion Aluminum Leg Leg Aluminum Leg Wheel Compact Wheel Flight Unit Improved VTOL Module Utility Improved Signal Interpreter Device Improved Heat Sink Storage Huge Storage Unit Processor Improved Signal Interpreter Hackware System Shield Protection Light Regenerative Plating Weapon Flak Cannon Energy Gun Shock Rifle Energy Cannon EM Pulse Cannon Ballistic Gun Gauss Rifle Ballistic Cannon Flak Cannon Launcher Grenade Launcher Special Weapon Field Lobotomy Kit Slashing Weapon Katana Piercing Weapon Force Lance Build | -11 -10 -10 -10 -9 -8 -8 -7 -6 -5 -4 -3 -2 -1 ------- Run | Yrd Mat Min Exi Min Mat Sto Fac Fac Fac Fac Res Res Acc Slots Evolved 18 | . . . . . 4 . 2 2 2 2 2 2 2 Power 1 | . . . . . . . . . 1 . . . . Propulsion 6 | . . . . . 2 . . . 1 1 . . 2 Utility 10 | . . . . . 2 . 2 2 . 1 1 2 . Weapon 1 | . . . . . . . . . . . 1 . . Parts Attached 128 | 6 6 3 . 9 27 22 13 13 5 4 6 4 10 Power 12 | 1 1 . . . 4 2 1 . 1 1 . . 1 Engine 7 | 1 1 . . . 2 1 1 . . 1 . . . Core 4 | . . . . . 2 1 . . 1 . . . . Reactor 1 | . . . . . . . . . . . . . 1 Propulsion 46 | 2 2 . . 3 10 13 3 4 1 1 1 2 4 Treads . | . . . . . . . . . . . . . . Leg 30 | . . . . 3 10 13 3 . . . . 1 . Wheel 4 | 2 2 . . . . . . . . . . . . Hover . | . . . . . . . . . . . . . . Flight 12 | . . . . . . . . 4 1 1 1 1 4 Utility 40 | 1 1 2 . 4 6 4 5 6 3 2 2 1 3 Device 14 | . 1 2 . . 2 1 2 3 2 1 . . . Storage 7 | 1 . . . 4 1 . . 1 . . . . . Processor 8 | . . . . . 1 1 1 1 1 1 1 . 1 Hackware 4 | . . . . . 1 . . . . . 1 1 1 Protection 7 | . . . . . 1 2 2 1 . . . . 1 Artifact . | . . . . . . . . . . . . . . Weapon 30 | 2 2 1 . 2 7 3 4 3 . . 3 1 2 Energy Gun 9 | 1 . . . . 1 2 2 1 . . 2 . . Energy Cannon 1 | . . . . . 1 . . . . . . . . Ballistic Gun 4 | 1 . . . . 3 . . . . . . . . Ballistic Cannon 4 | . 1 1 . 1 1 . . . . . . . . Launcher 8 | . 1 . . 1 . . 2 1 . . 1 . 2 Special Weapon 2 | . . . . . 1 1 . . . . . . . Impact Weapon . | . . . . . . . . . . . . . . Slashing Weapon 1 | . . . . . . . . 1 . . . . . Piercing Weapon 1 | . . . . . . . . . . . . 1 . Special Melee Weapon . | . . . . . . . . . . . . . . Unidentified Prototypes 6 | . . 1 . . . . . 5 . . . . . Parts Lost 47 | . 6 . . . 5 7 8 3 . . 1 . 17 Power 8 | . 1 . . . 2 1 1 1 . . . . 2 Propulsion 17 | . 2 . . . . 2 3 1 . . . . 9 Utility 10 | . 1 . . . 1 1 1 1 . . . . 5 Weapon 12 | . 2 . . . 2 3 3 . . . 1 . 1 Highest Loss Streak 13 | . 4 . . . 2 5 4 2 . . 1 . 13 To Critical Strikes . | . . . . . . . . . . . . . . Average Slot Usage (%) 91 | . 72 100 75 96 94 97 91 97 88 92 90 85 68 Engine 4 | . 9 14 14 14 5 1 2 6 . 3 4 4 . Core 3 | . . . . . 3 6 3 . 5 5 4 4 3 Leg 21 | . . . . 20 33 35 29 3 . . . . . Wheel 4 | . 24 28 28 7 . . . . . . . . . Flight 5 | . . . . . . . . 22 29 31 28 26 19 Device 9 | . 2 14 14 14 10 6 7 11 16 18 14 13 6 Storage 8 | . 14 14 14 14 9 9 7 6 5 5 4 4 3 Processor 10 | . . . . . . 10 21 24 17 17 19 17 18 Hackware 3 | . . . . . 8 7 . . . . . 7 8 Protection 3 | . . . . . 5 1 5 6 5 5 4 4 2 Energy Gun 2 | . 5 . . . 1 1 7 6 . . 4 . . Energy Cannon 2 | . . . . . 2 7 . . . . . . . Ballistic Gun 2 | . 8 . . . 8 . . . . . . . . Ballistic Cannon 5 | . 8 28 3 14 3 8 . . . . . . . Launcher 1 | . . . . 11 . . 3 1 . . . . 1 Naked Turns . | . . . . . . . . . . . . . . Heaviest Build 106 | 14 15 17 17 17 99 103 106 106 25 30 31 32 52 Greatest Support 60 | 26 26 26 26 26 50 60 60 55 26 32 32 32 54 Greatest Overweight (x) 4 | . 2 . . 1 4 2 2 4 . . . . . Average Overweight (x) . | . . . . . . 1 1 1 . . . . . Largest Inventory Capacity 25 | 8 8 8 8 25 25 25 25 25 8 8 8 8 8 Average Capacity 17 | 7 8 8 8 8 19 25 25 11 8 8 8 8 7 Most Carried 25 | 4 7 7 8 8 19 25 25 21 8 8 8 8 7 Average Carried 14 | 1 4 5 7 7 12 23 21 9 6 7 7 8 4 Final Capacity 25 | 8 8 8 8 8 25 25 25 8 8 8 8 8 5 Final Carried 25 | 1 6 7 8 8 18 25 21 8 7 8 8 8 5 Class Distribution -------------------- 54% | Scavenger-Mutant 25% | Mutant 6% | Sprinter 5% | Skirmisher 3% | Hacker-Sprinter Dominant Class ---------------- Mutant | -10/Materials Mutant | -10/Mines Mutant | -10/Exiles Skirmisher | -9/Mines Scavenger-Mutant | -8/Materials Scavenger-Mutant | -8/Storage Scavenger-Mutant | -7/Factory Mutant | -6/Factory Sprinter | -5/Factory Sprinter | -4/Factory Scavenger-Sprinter | -3/Research Hacker-Sprinter | -2/Research Hacker-Sprinter | -1/Access Resources | -11 -10 -10 -10 -9 -8 -8 -7 -6 -5 -4 -3 -2 -1 ----------- Run | Yrd Mat Min Exi Min Mat Sto Fac Fac Fac Fac Res Res Acc Matter Collected 2493 | 241 227 118 35 142 703 406 126 139 . 186 107 . 63 Remotely . | . . . . . . . . . . . . . . Salvage Created 3186 | . 300 126 . 116 1137 782 319 160 . 104 69 . 73 Parts 195 | . 22 5 . 11 57 52 13 9 . 9 10 . 7 Haulers Intercepted 3 | . 1 . . . 1 1 . . . . . . . Recyclers Shooed 2 | . . . . . 2 . . . . . . . . Parts Field Recycled . | . . . . . . . . . . . . . . Retrieved Matter . | . . . . . . . . . . . . . . Parts Self-Destructed . | . . . . . . . . . . . . . . Prevented . | . . . . . . . . . . . . . . Kills | -11 -10 -10 -10 -9 -8 -8 -7 -6 -5 -4 -3 -2 -1 ------- Run | Yrd Mat Min Exi Min Mat Sto Fac Fac Fac Fac Res Res Acc Combat Hostiles Destroyed 74 | . 10 3 . 6 22 18 8 3 . 1 . . 3 Melee 1 | . . . . . . . . . . 1 . . . Guns 30 | . 8 . . . 15 1 5 1 . . . . . Cannons 26 | . 1 3 . 4 7 11 . . . . . . . AOE 17 | . 1 . . 2 . 6 3 2 . . . . 3 Classes Destroyed 14 | . 6 1 . . 5 1 1 . . . . . . Worker 3 | . . . . . 1 . . 2 . . . . . Builder 5 | . 1 . . . 1 . . 1 . 1 1 . . Tunneler 1 | . 1 . . . . . . . . . . . . Hauler 3 | . 1 . . . 1 1 . . . . . . . Recycler 2 | . . 1 . . . 1 . . . . . . . Operator 2 | . . . . . . 1 . . . . 1 . . Watcher 5 | . 1 . . . 2 1 . . . . . . 1 Swarmer 26 | . 6 3 . 3 3 8 . . . . . . 3 Grunt 32 | . 4 . . 3 14 6 3 2 . . . . . Brawler 1 | . . . . . 1 . . . . . . . . Duelist 1 | . . . . . 1 . . . . . . . . Sentry 9 | . . . . . 2 5 1 . . 1 . . . Hunter 3 | . . . . . 1 . 2 . . . . . . Programmer 3 | . . . . . . . 2 1 . . . . . Best Kill Streak 8 | . 8 4 . 3 5 5 3 2 . 1 1 . 3 Combat Bots Only 4 | . 3 3 . 3 4 4 3 2 . 1 . . 3 Max Kills in Single Turn 4 | . 3 1 . 1 2 4 2 2 . 1 1 . 2 Gunslinging . | . . . . . . . . . . . . . . Exploded 3 | . 1 . . 1 . 3 2 1 . . . . 2 Melee 1 | . . . . . . . . . . 1 . . . Uniques/NPCs Destroyed . | . . . . . . . . . . . . . . Combat | -11 -10 -10 -10 -9 -8 -8 -7 -6 -5 -4 -3 -2 -1 -------- Run | Yrd Mat Min Exi Min Mat Sto Fac Fac Fac Fac Res Res Acc Hostile Shots Fired 855 | . 63 10 . 13 113 126 97 120 1 5 15 . 292 Missed 326 | . 12 3 . 5 24 28 35 52 1 4 13 . 149 Damage Taken 8559 | . 499 56 . 72 1256 1715 1064 680 . 26 46 . 3145 Core 2455 | . 92 21 . 8 175 260 160 135 . . . . 1604 Absorbed by Shields 28 | . . . . . . 28 . . . . . . . Redirected to Shielding 22 | . . . . . 22 . . . . . . . . Regen/Repaired (Parts) 239 | . . . . . . . . 34 56 52 48 . 49 Core Remaining (%) 81 | 100 . . . 51 . 20 77 84 100 100 100 100 . Volleys Fired 227 | . 40 7 . 8 67 60 31 11 . . . . 3 Largest 2 | . 2 2 . 1 2 2 2 2 . . . . 1 Hottest 135 | . 65 70 . 35 107 107 135 135 . . . . 49 Shots Fired 387 | . 68 14 . 8 131 98 48 17 . . . . 3 Gun 207 | . 45 . . . 93 18 40 11 . . . . . Cannon 155 | . 22 14 . 6 36 77 . . . . . . . Launcher 20 | . 1 . . 2 . . 8 6 . . . . 3 Special 5 | . . . . . 2 3 . . . . . . . Kinetic 215 | . 54 14 . 6 103 38 . . . . . . . Thermal 32 | . . . . . 12 . 15 5 . . . . . Explosive 20 | . 1 . . 2 . . 8 6 . . . . 3 Electromagnetic 115 | . 13 . . . 14 57 25 6 . . . . . Robot Hit Streak 19 | . 12 4 . 2 19 7 11 10 . . . . 1 Robot Miss Streak 7 | . 5 1 . 1 3 7 3 2 . . . . 2 Penetration Max 1 | . . . . . 1 . . . . . . . . Secondary Targets . | . . . . . . . . . . . . . . Shots Hit Robots 271 | . 40 9 . 4 93 59 37 16 . 5 2 . 6 Core Hits 191 | . 18 3 . 8 59 50 24 16 . 3 2 . 8 Critical Kills 1 | . . . . . 1 . . . . . . . . Critical Parts Destroyed 1 | . . . . . 1 . . . . . . . . Critical Strikes 11 | . . . . 2 5 1 2 . . 1 . . . Burn 2 | . . . . . 2 . . . . . . . . Destroy 2 | . . . . . 2 . . . . . . . . Blast 2 | . . . . 2 . . . . . . . . . Corrupt 4 | . . . . . 1 1 2 . . . . . . Sever 1 | . . . . . . . . . . 1 . . . Melee Attacks 56 | . . . . . . . . 2 5 9 9 6 25 Impact . | . . . . . . . . . . . . . . Slashing 30 | . . . . . . . . 2 5 9 9 5 . Piercing 26 | . . . . . . . . . . . . 1 25 Sneak Attacks 5 | . . . . . . . . 1 . 1 1 . 2 Combat Hostiles 1 | . . . . . . . . . . . . . 1 Follow-up Attacks . | . . . . . . . . . . . . . . Damage Inflicted 7550 | . 778 169 . 232 1907 1697 808 868 . 236 131 . 724 Guns 2562 | . 355 . . . 1245 219 574 169 . . . . . Cannons 2155 | . 214 169 . 70 643 1059 . . . . . . . Explosions 2006 | . 209 . . 162 . 415 234 636 . . . . 350 Melee 804 | . . . . . . . . 63 . 236 131 . 374 Ramming 23 | . . . . . 19 4 . . . . . . . Kinetic 2577 | . 462 169 . 70 1396 480 . . . . . . . Thermal 820 | . 79 . . . 158 126 304 153 . . . . . Explosive 1801 | . 130 . . 162 . 289 234 636 . . . . 350 Electromagnetic 1525 | . 107 . . . 334 798 270 16 . . . . . Impact . | . . . . . . . . . . . . . . Slashing 430 | . . . . . . . . 63 . 236 131 . . Piercing 374 | . . . . . . . . . . . . . 374 Highest Corruption 4 | . 1 1 1 1 . . 4 2 . . . 1 2 Average Corruption 1 | . 1 1 1 1 . . 3 1 . . . 1 1 Corruption Purged . | . . . . . . . . . . . . . . Corruption Blocked . | . . . . . . . . . . . . . . Effects 26 | . 2 1 2 1 . . 12 7 . . . . 1 Message Errors 10 | . . 1 1 . . . 5 3 . . . . . Matter Fused 6 | . . . 1 1 . . 3 . . . . . 1 Heat Flow Errors 1 | . . . . . . . . 1 . . . . . Energy Discharges 2 | . . . . . . . 1 1 . . . . . Parts Fused 1 | . . . . . . . 1 . . . . . . Data Loss (minor) 2 | . 1 . . . . . 1 . . . . . . Data Loss (major) 2 | . 1 . . . . . . 1 . . . . . Misfires 1 | . . . . . . . . 1 . . . . . Weapon Failures 1 | . . . . . . . 1 . . . . . . Overload Shots . | . . . . . . . . . . . . . . Overflow Damage 311 | . 24 16 . . . 71 10 57 . . . . 133 Projectiles 44 | . . 16 . . . 28 . . . . . . . Explosions 136 | . 24 . . . . 43 10 34 . . . . 25 Melee 131 | . . . . . . . . 23 . . . . 108 Knockbacks 22 | . 2 1 . . 8 11 . . . . . . . Impact . | . . . . . . . . . . . . . . Kinetic 18 | . 2 1 . . 6 9 . . . . . . . Secondary 4 | . . . . . 2 2 . . . . . . . Self-Inflicted Damage 637 | . 38 . . . . 201 337 61 . . . . . Shots 14 | . 1 . . . . 4 8 1 . . . . . Rammed . | . . . . . . . . . . . . . . Targets Rammed 2 | . . . . . 1 1 . . . . . . . Kicked 2 | . . . . . 1 1 . . . . . . . Crushed . | . . . . . . . . . . . . . . Highest Temperature 300 | . 62 27 . 4 132 300 36 264 17 94 124 49 125 Average Temperature 49 | . 22 13 . 4 27 109 11 62 7 24 43 17 52 Received Heat Transfer 1857 | . 120 . . 15 540 813 168 129 . . . . 72 Effects 4 | . . . . . . 4 . . . . . . . Energy Bleed 1 | . . . . . . 1 . . . . . . . Interference 3 | . . . . . . 3 . . . . . . . Siege Activations . | . . . . . . . . . . . . . . Robots Corrupted . | . . . . . . . . . . . . . . Combat Hostiles . | . . . . . . . . . . . . . . Parts Fried 6 | . . . . . 4 2 . . . . . . . Impact Corruptions . | . . . . . . . . . . . . . . Robots Melted . | . . . . . . . . . . . . . . Combat Hostiles . | . . . . . . . . . . . . . . Parts Melted 3 | . . . . . 1 . 2 . . . . . . Heat Transferred 1780 | . 150 . . . 555 150 650 275 . . . . . Parts Sabotaged . | . . . . . . . . . . . . . . Parts Stolen . | . . . . . . . . . . . . . . Parts Stripped . | . . . . . . . . . . . . . . Power Chain Reactions 3 | . 1 . . . . 2 . . . . . . . Alert | -11 -10 -10 -10 -9 -8 -8 -7 -6 -5 -4 -3 -2 -1 ------- Run | Yrd Mat Min Exi Min Mat Sto Fac Fac Fac Fac Res Res Acc Peak Influence 382 | . 255 96 . 176 333 382 213 136 36 75 108 69 346 Initial 144 | . . 21 . . 68 134 144 14 30 17 39 54 1 Average 120 | . 123 73 . 153 189 138 91 44 28 23 54 37 144 Maximum Alert Level 1 | . 1 . . . 1 1 1 . . . . . 1 Low Security (%) 81 | 100 71 100 . 100 52 84 89 100 100 100 100 100 65 Level 1 18 | . 28 . . . 47 15 10 . . . . . 34 Level 2 . | . . . . . . . . . . . . . . Level 3 . | . . . . . . . . . . . . . . Level 4 . | . . . . . . . . . . . . . . Level 5 . | . . . . . . . . . . . . . . High Security . | . . . . . . . . . . . . . . Max Security . | . . . . . . . . . . . . . . Squads Dispatched 19 | . 2 . . . 3 4 5 . 1 . 1 . 3 Investigation 5 | . 2 . . . . 1 2 . . . . . . Extermination 4 | . . . . . . . 2 . . . 1 . 1 Reinforcement 7 | . . . . . 3 1 1 . 1 . . . 1 Assault 2 | . . . . . . 2 . . . . . . . Garrison 1 | . . . . . . . . . . . . . 1 Intercept . | . . . . . . . . . . . . . . Searches Triggered . | . . . . . . . . . . . . . . Construction Impeded 1 | . . . . . 1 . . . . . . . . Haulers Reinforced . | . . . . . . . . . . . . . . Active Scanning Responses . | . . . . . . . . . . . . . . Cargo Convoy Interrupts . | . . . . . . . . . . . . . . Stealth | -11 -10 -10 -10 -9 -8 -8 -7 -6 -5 -4 -3 -2 -1 --------- Run | Yrd Mat Min Exi Min Mat Sto Fac Fac Fac Fac Res Res Acc Distress Signals 6 | . . . . . 3 . . 1 . . . . 2 Communications Jammed . | . . . . . . . . . . . . . . Distress Signals . | . . . . . . . . . . . . . . Times Spotted 182 | . 12 3 . 5 47 35 13 10 4 2 5 3 43 Peak Tracking Total 24 | . 4 3 . 3 8 10 3 6 3 2 6 3 24 Tactical Retreats 9 | . . . . . 1 1 1 2 . . . . 4 Traps | -11 -10 -10 -10 -9 -8 -8 -7 -6 -5 -4 -3 -2 -1 ------- Run | Yrd Mat Min Exi Min Mat Sto Fac Fac Fac Fac Res Res Acc Traps Triggered 7 | . 1 . . . 2 1 1 . . . . 1 1 Indirectly . | . . . . . . . . . . . . . . Trap Hack Attempts . | . . . . . . . . . . . . . . Triggered . | . . . . . . . . . . . . . . Disarmed . | . . . . . . . . . . . . . . Reprogrammed . | . . . . . . . . . . . . . . Reused . | . . . . . . . . . . . . . . Traps Extracted . | . . . . . . . . . . . . . . Installed . | . . . . . . . . . . . . . . Triggered . | . . . . . . . . . . . . . . Machines | -11 -10 -10 -10 -9 -8 -8 -7 -6 -5 -4 -3 -2 -1 ---------- Run | Yrd Mat Min Exi Min Mat Sto Fac Fac Fac Fac Res Res Acc Machines Disabled 8 | . 1 . . 1 . 5 1 . . . . . . Max in Single Turn 2 | . 1 . . 1 . 2 1 . . . . . . Garrison Access 2 | . . . . . . 1 . . 1 . . . . Machines Repaired . | . . . . . . . . . . . . . . Machines Dismantled . | . . . . . . . . . . . . . . Machines Sabotaged . | . . . . . . . . . . . . . . Overloaded Fab Kills . | . . . . . . . . . . . . . . Hacking | -11 -10 -10 -10 -9 -8 -8 -7 -6 -5 -4 -3 -2 -1 --------- Run | Yrd Mat Min Exi Min Mat Sto Fac Fac Fac Fac Res Res Acc Machines Accessed 34 | . 6 . 1 1 4 13 2 1 2 1 . 1 2 Terminals 26 | . 6 . . . 3 12 1 . 1 1 . 1 1 Fabricators 3 | . . . . . . . 1 1 . . . . 1 Repair Stations . | . . . . . . . . . . . . . . Recycling Units . | . . . . . . . . . . . . . . Scanalyzers 1 | . . . . . 1 . . . . . . . . Garrison Access 2 | . . . . . . 1 . . 1 . . . . Total Hacks 72 | . 14 . 1 1 10 27 4 2 5 1 . 3 4 Successful 38 | . 9 . 1 1 8 11 1 1 3 . . 1 2 Failed 34 | . 5 . . . 2 16 3 1 2 1 . 2 2 Catastrophic 5 | . . . . . 2 1 2 . . . . . . Database Lockouts . | . . . . . . . . . . . . . . Manual 22 | . 11 . 1 . 2 4 . . 3 . . . 1 Terminals 63 | . 14 . . . 9 26 3 . 4 1 . 3 3 Fabricators 4 | . . . . . . . 1 2 . . . . 1 Repair Stations . | . . . . . . . . . . . . . . Recycling Units . | . . . . . . . . . . . . . . Scanalyzers 1 | . . . . . 1 . . . . . . . . Garrison Access 2 | . . . . . . 1 . . 1 . . . . Terminal Hacks 24 | . 3 . 1 1 5 10 1 . 1 . . 1 1 Record 2 | . . . . . . 1 . . . . . . 1 Robot Analysis 1 | . . . . . . . 1 . . . . . . Prototype ID Bank 1 | . . . . . 1 . . . . . . . . Open Door 6 | . . . . 1 . 5 . . . . . . . Alert Level 1 | . . . . . 1 . . . . . . . . Unreport Threat 3 | . . . . . 1 . . . 1 . . 1 . Locate Traps 5 | . 2 . . . . 3 . . . . . . . Hauler Manifests 1 | . . . . . 1 . . . . . . . . Zone Layout 3 | . 1 . . . 1 1 . . . . . . . Derelict Proto ID Bank 1 | . . . 1 . . . . . . . . . . Fabricator Hacks 1 | . . . . . . . . 1 . . . . . Build 1 | . . . . . . . . 1 . . . . . Repair Station Hacks . | . . . . . . . . . . . . . . Recycling Unit Hacks . | . . . . . . . . . . . . . . Scanalyzer 1 | . . . . . 1 . . . . . . . . Insert Component 1 | . . . . . 1 . . . . . . . . Garrison Access Hacks 2 | . . . . . . 1 . . 1 . . . . Seal Access 2 | . . . . . . 1 . . 1 . . . . Unauthorized Hacks 10 | . 6 . . . 2 . . . 1 . . . 1 Terminals 9 | . 6 . . . 2 . . . 1 . . . . Assimilate 4 | . 2 . . . 1 . . . 1 . . . . Botnet 5 | . 4 . . . 1 . . . . . . . . Fabricators 1 | . . . . . . . . . . . . . 1 Report 1 | . . . . . . . . . . . . . 1 Repair Stations . | . . . . . . . . . . . . . . Recycling Units . | . . . . . . . . . . . . . . Scanalyzers . | . . . . . . . . . . . . . . Garrison Access . | . . . . . . . . . . . . . . Data Cores Recovered 2 | . . . . . . 1 . . . . 1 . . Used . | . . . . . . . . . . . . . . Hacking Detections 20 | . 4 . . . 2 6 2 1 1 1 . 1 2 Full Trace Events 3 | . 2 . . . . . 1 . . . . . . Feedback Events 1 | . 1 . . . . . . . . . . . . Corruption 1 | . 1 . . . . . . . . . . . . Feedback Blocked . | . . . . . . . . . . . . . . Robot Schematics Acquired . | . . . . . . . . . . . . . . Robots Built 1 | . . . . . . . . 1 . . . . . Authchips . | . . . . . . . . . . . . . . Time 81 | . . . . . . . . 81 . . . . . Total Robot Build Rating 1 | . . . . . . . . 1 . . . . . Part Schematics Acquired . | . . . . . . . . . . . . . . Parts Built . | . . . . . . . . . . . . . . Authchips . | . . . . . . . . . . . . . . Time . | . . . . . . . . . . . . . . Total Part Build Rating . | . . . . . . . . . . . . . . Parts Repaired . | . . . . . . . . . . . . . . Time . | . . . . . . . . . . . . . . Parts Recycled . | . . . . . . . . . . . . . . Recycled Matter . | . . . . . . . . . . . . . . Retrieved Matter . | . . . . . . . . . . . . . . Retrieved Components . | . . . . . . . . . . . . . . Parts Scanalyzed . | . . . . . . . . . . . . . . Part Schematics Acquired . | . . . . . . . . . . . . . . Parts Damaged . | . . . . . . . . . . . . . . Bothacking | -11 -10 -10 -10 -9 -8 -8 -7 -6 -5 -4 -3 -2 -1 ------------ Run | Yrd Mat Min Exi Min Mat Sto Fac Fac Fac Fac Res Res Acc Used RIF Installer . | . . . . . . . . . . . . . . Robots Hacked . | . . . . . . . . . . . . . . Non-combat . | . . . . . . . . . . . . . . Combat . | . . . . . . . . . . . . . . Robot Hacks Applied . | . . . . . . . . . . . . . . Relay Couplers Released . | . . . . . . . . . . . . . . Fabnet Peak Effective % . | . . . . . . . . . . . . . . Robots Rewired . | . . . . . . . . . . . . . . Allies Hacked 1 | . . . . . . . . . . . . . 1 Hacks Repelled . | . . . . . . . . . . . . . . Allies | -11 -10 -10 -10 -9 -8 -8 -7 -6 -5 -4 -3 -2 -1 -------- Run | Yrd Mat Min Exi Min Mat Sto Fac Fac Fac Fac Res Res Acc Total Allies 11 | . . . . . 2 5 . 1 . . . . 3 Largest Group 3 | . . . . . 1 3 1 1 . . . . 3 Highest-Rated Group 138 | . . . . . 16 63 29 6 . . . . 138 Highest-Rated Ally 46 | . . . . . 16 31 29 6 . . . . 46 Total Orders 2 | . . . . . . 1 . 1 . . . . . EXPLORE 2 | . . . . . . 1 . 1 . . . . . Ally Attacks 51 | . . . . . 3 35 4 . . . . . 9 Total Damage 951 | . . . . . 45 594 76 . . . . . 236 Kills 7 | . . . . . . 6 1 . . . . . . Allies Corrupted . | . . . . . . . . . . . . . . Allies Melted . | . . . . . . . . . . . . . . Field Lobotomies 5 | . . . . . 2 3 . . . . . . . Intel | -11 -10 -10 -10 -9 -8 -8 -7 -6 -5 -4 -3 -2 -1 ------- Run | Yrd Mat Min Exi Min Mat Sto Fac Fac Fac Fac Res Res Acc Robot Analysis Total 1 | . . . . . . . 1 . . . . . . Derelict Logs Recovered . | . . . . . . . . . . . . . . Drone Launches 4 | . . . . . . 2 . 2 . . . . . Drone Recoveries 1 | . . . . . . 1 . . . . . . . Exploration | -11 -10 -10 -10 -9 -8 -8 -7 -6 -5 -4 -3 -2 -1 ------------- Run | Yrd Mat Min Exi Min Mat Sto Fac Fac Fac Fac Res Res Acc Turns Passed 6642 | 45 469 236 296 227 1191 1807 1015 446 170 154 250 62 274 Spaces Moved 4501 | 35 363 230 325 165 412 613 433 360 282 230 322 155 576 Core 96 | 2 1 . . . . . . . . . . . 93 Treads . | . . . . . . . . . . . . . . Legs 1599 | . . . . 128 412 613 433 12 . . . 1 . Wheels 987 | 33 362 230 325 37 . . . . . . . . . Hover . | . . . . . . . . . . . . . . Flight 1819 | . . . . . . . . 348 282 230 322 154 483 Fastest Speed 19 | 50 90 90 90 90 120 190 190 26 23 20 20 20 19 Average Speed 108 | 91 90 90 90 114 186 245 190 97 23 20 20 20 28 Slowest Speed 400 | 100 150 90 90 190 400 260 260 298 26 20 20 120 50 Overloaded Moves . | . . . . . . . . . . . . . . Propulsion Burnouts . | . . . . . . . . . . . . . . Robots Hopped 3 | . . . . . . . . . 1 . . . 2 Cave-ins Triggered . | . . . . . . . . . . . . . . Exploration Rate (%) 30 | 2 57 56 71 29 35 85 15 11 11 6 13 5 24 Regions Visited 13 Branch Regions 4 Pre-discovered Areas . | . . . . . . . . . . . . . . Known Exits Taken 8 | . . . . . 1 1 1 1 1 1 1 1 . Unknown Exits Taken 5 | 1 1 1 1 1 . . . . . . . . . Scrap Searched 2 | . . . . 2 . . . . . . . . . Spaces Dug 47 | . 5 . . . . . . 1 4 4 7 6 20 Terrain Destroyed 209 | . 8 . . 9 1 12 27 86 4 4 7 6 45 Melee 42 | . . . . . . . . 1 4 4 7 6 20 Projectile 1 | . . . . . 1 . . . . . . . . AOE 166 | . 8 . . 9 . 12 27 85 . . . . 25 Terrain Rammed . | . . . . . . . . . . . . . . Walls Destroyed . | . . . . . . . . . . . . . . Machines Disabled . | . . . . . . . . . . . . . . Actions | -11 -10 -10 -10 -9 -8 -8 -7 -6 -5 -4 -3 -2 -1 --------- Run | Yrd Mat Min Exi Min Mat Sto Fac Fac Fac Fac Res Res Acc Total 5792 | 47 435 245 330 195 711 817 572 437 378 323 494 174 634 Wait 716 | . 16 2 . 5 171 77 84 32 83 76 150 7 13 Move 4482 | 34 362 229 324 164 411 612 432 359 279 229 321 154 572 Hop 3 | . . . . . . . . . 1 . . . 2 Pick Up 99 | 7 10 3 2 5 24 23 9 5 2 4 2 . 3 Fast Attach 20 | . . . . . 5 3 1 . 1 1 3 4 2 Attach 77 | 6 6 3 . 4 12 9 10 10 4 3 3 . 7 Detach 9 | . 1 1 1 . . . . . 1 . 1 . 4 Swap 31 | . . . . 5 10 10 2 3 . . . . 1 Drop 67 | . . . 3 4 10 19 3 15 2 1 5 3 2 Fire 227 | . 40 7 . 8 67 60 31 11 . . . . 3 Melee 56 | . . . . . . . . 2 5 9 9 6 25 Ram . | . . . . . . . . . . . . . . Kick 2 | . . . . . 1 1 . . . . . . . Crush . | . . . . . . . . . . . . . . Escape Stasis 3 | . . . . . . 3 . . . . . . . Rewire . | . . . . . . . . . . . . . . Trap . | . . . . . . . . . . . . . . Miscellaneous . | . . . . . . . . . . . . . . Route ------- -11/Scrapyard -10/Materials (discovered 2 exits: [*Mat] / [*Min]) -10/Mines -10/Exiles -9/Mines -8/Materials (discovered 2 exits: Fac / *Sto) -8/Storage -7/Factory -6/Factory -5/Factory -4/Factory -3/Research -2/Research -1/Access History --------- Turn | Location | Event 20 | -11/Scrapyard | Discovered new exit (range 15) 46 | -11/Scrapyard | Entered Materials 289 | -10/Materials | Discovered new exit (range 12) 300 | -10/Materials | Build established: Mutant 304 | -10/Materials | Lost 4 parts (1p1n1u1w) 415 | -10/Materials | Discovered new exit (range 10) 515 | -10/Materials | Entered Mines 671 | -10/Mines | Found a damaged Exp. Sensor Array with a note attached 673 | -10/Mines | Found Prototype Device 675 | -10/Mines | Identified Exp. Sensor Array 747 | -10/Mines | Deemed a non-threat by the Exiles lab entrance 747 | -10/Mines | Discovered new exit (range 5) 751 | -10/Mines | Entered Exiles 773 | -10/Exiles | Met 8R-AWN 788 | -10/Exiles | Met EX-HEX 835 | -10/Exiles | Met EX-DEC 903 | -10/Exiles | Met EX-BIN 914 | -10/Exiles | Aligned with FarCom system 915 | -10/Exiles | Given EX-Vault access code 937 | -10/Exiles | Opened EX-Vault 945 | -10/Exiles | Found Field Lobotomy Kit 966 | -10/Exiles | Warned to stay clear of 0b10 Research branches 1036 | -10/Exiles | Discovered new exit (range 14) 1047 | -10/Exiles | Left Exiles lab with Field Lobotomy Kit 1047 | -10/Exiles | Entered Mines 1100 | -9/Mines | Met a Derelict bent on vengeance 1205 | -9/Mines | Discovered new exit (range 13) 1223 | -9/Mines | Found the Drone Emporium 1230 | -9/Mines | Found Prototype Device 1274 | -9/Mines | Entered Materials 1274 | -8/Materials | Evolved 4 slots: Propulsion x2, Utility x2 1403 | -8/Materials | Build established: Skirmisher 1825 | -8/Materials | Discovered new exit (range 17) 1863 | -8/Materials | Build established: Scavenger-Mutant 2033 | -8/Materials | Assimilated G-47 Trooper with FLK Orb 2037 | -8/Materials | Assimilated G-47 Trooper with FLK Orb 2426 | -8/Materials | Discovered new exit (range 15) 2462 | -8/Materials | Identified exit to Storage 2465 | -8/Materials | Entered Storage 3125 | -8/Storage | Found Prototype Processor 3311 | -8/Storage | Found Prototype Protection 4110 | -8/Storage | Discovered new exit (range 15) 4136 | -8/Storage | Met a pair of Derelict thieves 4162 | -8/Storage | Core integrity fell below 50% 4169 | -8/Storage | Assimilated G-50 Soldier with FLK Orb 4172 | -8/Storage | Assimilated L-31 Rogue with FLK Orb 4175 | -8/Storage | Assimilated G-47 Trooper with FLK Orb 4216 | -8/Storage | Lost 5 parts (1p2n2w) 4218 | -8/Storage | Lost 4 allies 4221 | -8/Storage | Build established: Mutant 4258 | -8/Storage | Identified exit to Factory 4272 | -8/Storage | Entered Factory 4272 | -7/Factory | Accompanied by 1 ally 4272 | -7/Factory | Evolved 2 slots: Utility x2 4554 | -7/Factory | Build established: Scavenger-Mutant 4934 | -7/Factory | Lost 4 parts (2n1u1w) 5256 | -7/Factory | Discovered new exit (range 15) 5285 | -7/Factory | Identified exit to Factory 5287 | -7/Factory | Entered another Factory area 5287 | -6/Factory | Evolved 2 slots: Utility x2 5352 | -6/Factory | Identified Sensor Drone Bay 5360 | -6/Factory | Identified Exp. Targeting Computer 5361 | -6/Factory | Identified Lgt. Regenerative Plating 5587 | -6/Factory | Fabricated K-01 Serf? 5719 | -6/Factory | Discovered new exit (range 16) 5732 | -6/Factory | Identified exit to Factory 5733 | -6/Factory | Entered another Factory area 5733 | -5/Factory | Evolved 2 slots: Power x1, Propulsion x1 5901 | -5/Factory | Discovered new exit (range 8) 5903 | -5/Factory | Identified exit to Factory 5903 | -5/Factory | Entered another Factory area 5903 | -4/Factory | Evolved 2 slots: Propulsion x1, Utility x1 6038 | -4/Factory | Build established: Sprinter 6044 | -4/Factory | Discovered new exit (range 13) 6057 | -4/Factory | Identified exit to Research 6057 | -4/Factory | Entered Research 6057 | -3/Research | Evolved 2 slots: Utility x1, Weapon x1 6267 | -3/Research | Discovered new exit (range 14) 6304 | -3/Research | Identified exit to Research 6307 | -3/Research | Entered another Research area 6307 | -2/Research | Evolved 2 slots: Utility x2 6366 | -2/Research | Discovered new exit (range 15) 6369 | -2/Research | Identified exit to Access 6369 | -2/Research | Entered Access 6369 | -1/Access | Evolved 2 slots: Propulsion x2 6453 | -1/Access | Spotted B-99 Colossus 6454 | -1/Access | Spotted B-99 Colossus 6508 | -1/Access | Spotted B-99 Colossus 6541 | -1/Access | Lost 4 parts (2n2u) 6552 | -1/Access | Allied Derelicts emerged from ambush trap array 6557 | -1/Access | Garrison activated, responded to threat 6593 | -1/Access | Lost 3 allies 6606 | -1/Access | Spotted B-99 Colossus 6611 | -1/Access | Core integrity fell below 50% 6627 | -1/Access | Core integrity fell below 20% 6643 | -1/Access | Destroyed by S-43 Plague with Heavy Machine Gun Last Messages --------------- 06607_ Knocked back. 06607_ Slug penetrates Wall. 06609_ Slug penetrates G-73 Enforcer. 06609_ Impulse Thruster destroyed. 06609_ Drone sends a signal. 06610_ Slug penetrates Wall. 06610_ Penetrated by Slug. 06610_ Slug penetrates Wall. 06610_ Penetrated by Slug. 06619_ ALERT: Rogue bot located, Programmers report to Access Zone 4Z. 06624_ Penetrated by Slug. 06625_ Acquired Imp. Hacking Suite. 06626_ Imp. Target Analyzer destroyed. 06626_ Penetrated by Slug. 06641_ Connecting with Fabricator... >>Trojan(Report) Trojan loaded successfully. Testing... Network status link confirmed. Map ----- +----------------------------------------------------+ | ?????????????????????????????????????????????????? | | ?????????????????????????????????????????????????? | | ?????????????????????????????????????????????????? | | ?????????????????????????????????????????????????? | | ?????????????????????????????????????????????????? | | ?????????????????????????????????????????????????? | | ?????????????????????????????????????????????????? | | ??????????????????????????????????????############ | | ??????????????????????????????????????# | | ??????????????????????????????????????# | | ??????????????????????????????????????# | | ??????????????????????????????????????# | | ??????????????????????????????????????# | | ??????????????????????????????????????# " | | ?????????????????????##########???????# """ = | | ?????????????????????# = #???????# """ ! = | | ?????????????????????# #???????# " | | ?????????????????????# [ """#???????# | | ?????????????????????# """#???????# | | ?????????????????????# ""#???????# | | ?????????????????????# F""#???????############ | | ?????????????????????# """#??????????????????? | | ?????????????????????# #??????????????????? | | ?????????????????????# #?????????????###### | | ???????????????#+#########+####???#######???# | | ???????????????# @ #???? #???# | | ???????????????########## #?? #???# | | ????????????????????????# s# #???# | | ????????????????????????# s/ #???# # | | ????????????????????????#s # #???# # | | ????????????????????????# # #??## # | | ????????????????????????# s#? ?? #??## =# | | ????????????????????????#s #? ??? #??## =%# | | ????????????????????????#s #?? ???? #???#^ * | | ######??????????????????# #??? ????? #???# # | | #??????????????????# #??? ???????#???# # | | #??????????????????# s#???? ??????????# # | | ##########?????????#p #?????##?????????# # | | "" # #???????### ###??????????????# # | | "" # ####+#### #??????????????# # | | "" # h ####### #???#* # | | "" / h | #???#%! # | | "" # % #???# # | | "" # % #### #???# # | | # ####### #??# ##### # | | # ![ #?????###+####??# # | | # !! #???????????????# * / | | ###### !! ###?????????????# # | | ?????# ?????????????# " # | | ?????# ????????????# """ # | +----------------------------------------------------+ Best States ------------- Heat Dissipation 52 Energy Generation 34 Energy Capacity 380 Matter Stores 300 Matter Capacity 300 Sight Range 20 Robot Scan Range 20 Terrain Scan Density 10 Armor Coverage 225 Core Shielding 20 Phase Shifting 5 Evasion (%) 81 Targeting Accuracy 18 Target Analysis 6 Core Analysis 9 Offensive Hacking 24 Defensive Hacking 14 Item Schematics ----------------- None Robot Schematics ------------------ None Fabricated ------------ K-01 Serf | x1 | -6/Factory | Preloaded Alien Tech Used ----------------- None Achievements -------------- My Command Is Your Wish Challenges ------------ None Game ------ Seed ArmoredBombardmentWheel Manual? 0 Play Time 02:16:10 Cumulative 68.6 hours Start 2024.04.27 @ 16:17:30 End 2024.04.27 @ 18:41:46 Sessions 1 Manual Loads 0 Difficulty Rogue Special Mode None Game No. 57 Rogue 57 Adventurer 0 Explorer 0 Win Type - Total 0 Types 0/0/0/0/0/0/0/0/0 Lore% 37 Gallery% 42 Achievement% 32 Wizard Run 0 Options --------- Layout 2 ASCII 0 Keyboard 0 Movement Mouse Keybinds 0 Fullscreen 1 Font 48/Smallcaps Map View 50x44 Zoom Use 0% Tactical HUD 1 Map Filters NONE Filters NONE Steam 1 RUN: e1810278-400b-47e5-a541-caa4fba95f8a